[Event "Titled Tuesday Blitz April 12 Early 2022"]
[White "De Souza, Cristiano Gomes"]
[Black "Potapova, Margarita"]
[WhiteFideId "2151758"]
[BlackFideId "14126869"]
[WhiteElo "2068"]
[BlackElo "2216"]
[Result "1/2-1/2"]
[Round "01"]
[TimeControl "180+1"]
[Date "2022.04.13"]
[WhiteClock "0:00:23"]
[BlackClock "0:00:05"]

1. d4 {[%clk 0:02:59]}  Nf6 {[%clk 0:02:59]} 2. c4 {[%clk 0:02:59]}  g6 {[%clk 0:02:56]} 3. Nc3 {[%clk 0:02:59]}  d5 {[%clk 0:02:57]} 4. Bf4 {[%clk 0:02:58]}  Bg7 {[%clk 0:02:56]} 5. e3 {[%clk 0:02:59]}  O-O {[%clk 0:02:57]} 6. Nf3 {[%clk 0:02:59]}  c5 {[%clk 0:02:56]} 7. dxc5 {[%clk 0:02:59]}  Ne4 {[%clk 0:02:49]} 8. Rc1 {[%clk 0:02:57]}  Qa5 {[%clk 0:02:34]} 9. cxd5 {[%clk 0:02:54]}  Na6 {[%clk 0:02:07]} 10. Bd3 {[%clk 0:02:16]}  Naxc5 {[%clk 0:02:05]} 11. O-O {[%clk 0:02:08]}  Nxc3 {[%clk 0:02:04]} 12. bxc3 {[%clk 0:02:08]}  Qxa2 {[%clk 0:01:54]} 13. Bb1 {[%clk 0:02:01]}  Qa5 {[%clk 0:01:51]} 14. c4 {[%clk 0:02:00]}  Bd7 {[%clk 0:01:38]} 15. Be5 {[%clk 0:01:54]}  f6 {[%clk 0:01:30]} 16. Bc3 {[%clk 0:01:49]}  Qc7 {[%clk 0:01:30]} 17. Nd4 {[%clk 0:01:47]}  Rfd8 {[%clk 0:01:28]} 18. Qf3 {[%clk 0:01:42]}  a6 {[%clk 0:01:26]} 19. Rfd1 {[%clk 0:01:41]}  Rab8 {[%clk 0:01:17]} 20. h3 {[%clk 0:01:36]}  Qd6 {[%clk 0:01:10]} 21. Bb4 {[%clk 0:01:25]}  Rdc8 {[%clk 0:01:03]} 22. Nb3 {[%clk 0:01:20]}  b6 {[%clk 0:01:03]} 23. Nxc5 {[%clk 0:01:15]}  bxc5 {[%clk 0:01:02]} 24. Bc3 {[%clk 0:01:15]}  a5 {[%clk 0:01:00]} 25. Bc2 {[%clk 0:01:13]}  a4 {[%clk 0:01:00]} 26. Ra1 {[%clk 0:01:09]}  Ra8 {[%clk 0:01:00]} 27. Ra3 {[%clk 0:01:07]}  Rc7 {[%clk 0:00:59]} 28. Rda1 {[%clk 0:01:05]}  Rca7 {[%clk 0:00:59]} 29. Qd1 {[%clk 0:01:05]}  Qa6 {[%clk 0:00:51]} 30. Qd3 {[%clk 0:01:02]}  Bf5 {[%clk 0:00:50]} 31. e4 {[%clk 0:01:02]}  Bd7 {[%clk 0:00:49]} 32. f4 {[%clk 0:00:58]}  Bh6 {[%clk 0:00:45]} 33. Bd2 {[%clk 0:00:56]}  Bg7 {[%clk 0:00:44]} 34. Be3 {[%clk 0:00:55]}  Qa5 {[%clk 0:00:43]} 35. Bxa4 {[%clk 0:00:53]}  Bxa4 {[%clk 0:00:15]} 36. Rxa4 {[%clk 0:00:52]}  Qxa4 {[%clk 0:00:16]} 37. Rxa4 {[%clk 0:00:52]}  Rxa4 {[%clk 0:00:17]} 38. Bxc5 {[%clk 0:00:52]}  Bf8 {[%clk 0:00:16]} 39. e5 {[%clk 0:00:51]}  Rc8 {[%clk 0:00:14]} 40. Bf2 {[%clk 0:00:42]}  fxe5 {[%clk 0:00:12]} 41. fxe5 {[%clk 0:00:40]}  Raxc4 {[%clk 0:00:13]} 42. d6 {[%clk 0:00:38]}  Rc1+ {[%clk 0:00:13]} 43. Kh2 {[%clk 0:00:36]}  exd6 {[%clk 0:00:13]} 44. exd6 {[%clk 0:00:35]}  Rd8 {[%clk 0:00:10]} 45. Bg3 {[%clk 0:00:35]}  Bg7 {[%clk 0:00:05]} 46. Qd5+ {[%clk 0:00:34]}  Kh8 {[%clk 0:00:05]} 47. Qe6 {[%clk 0:00:34]}  Rcc8 {[%clk 0:00:05]} 48. d7 {[%clk 0:00:33]}  Ra8 {[%clk 0:00:05]} 49. Bh4 {[%clk 0:00:31]}  Rf8 {[%clk 0:00:05]} 50. d8=Q {[%clk 0:00:30]}  Raxd8 {[%clk 0:00:06]} 51. Bxd8 {[%clk 0:00:30]}  Rxd8 {[%clk 0:00:07]} 52. Qe7 {[%clk 0:00:29]}  Rf8 {[%clk 0:00:06]} 53. Kg3 {[%clk 0:00:28]}  Kg8 {[%clk 0:00:07]} 54. h4 {[%clk 0:00:28]}  Bf6 {[%clk 0:00:07]} 55. Qe6+ {[%clk 0:00:25]}  Kg7 {[%clk 0:00:07]} 56. Kg4 {[%clk 0:00:26]}  Rf7 {[%clk 0:00:07]} 57. g3 {[%clk 0:00:25]}  Re7 {[%clk 0:00:08]} 58. Qd5 {[%clk 0:00:24]}  h5+ {[%clk 0:00:08]} 59. Kh3 {[%clk 0:00:25]}  Re5 {[%clk 0:00:09]} 60. Qd7+ {[%clk 0:00:24]}  Re7 {[%clk 0:00:09]} 61. Qc8 {[%clk 0:00:25]}  Re5 {[%clk 0:00:09]} 62. Qc2 {[%clk 0:00:26]}  Re7 {[%clk 0:00:10]} 63. Qf2 {[%clk 0:00:26]}  Re5 {[%clk 0:00:10]} 64. Qf3 {[%clk 0:00:26]}  Re7 {[%clk 0:00:10]} 65. g4 {[%clk 0:00:27]}  hxg4+ {[%clk 0:00:11]} 66. Kxg4 {[%clk 0:00:27]}  Rc7 {[%clk 0:00:09]} 67. h5 {[%clk 0:00:24]}  Rc4+ {[%clk 0:00:08]} 68. Kg3 {[%clk 0:00:24]}  Rc3 {[%clk 0:00:05]} 69. Qxc3 {[%clk 0:00:23]}  Bxc3 {[%clk 0:00:05]} 70. hxg6 {[%clk 0:00:23]}  Kxg6 {[%clk 0:00:05]} 1/2-1/2


[Site "https://www.chess.com"]

[Event "Titled Tuesday Blitz April 12 Early 2022"]
[White "Demchenko, Anton"]
[Black "Manukyan, Sargis A."]
[WhiteFideId "4160258"]
[BlackFideId "13303970"]
[WhiteElo "2539"]
[BlackElo "2187"]
[Result "1-0"]
[Round "01"]
[TimeControl "180+1"]
[Date "2022.04.12"]
[WhiteClock "0:01:22"]
[BlackClock "0:00:07"]

1. e4 {[%clk 0:02:58]}  c5 {[%clk 0:02:59]} 2. Nf3 {[%clk 0:02:57]}  d6 {[%clk 0:02:58]} 3. d4 {[%clk 0:02:58]}  cxd4 {[%clk 0:02:57]} 4. Qxd4 {[%clk 0:02:59]}  Nc6 {[%clk 0:02:57]} 5. Bb5 {[%clk 0:02:59]}  Bd7 {[%clk 0:02:53]} 6. Bxc6 {[%clk 0:03:00]}  Bxc6 {[%clk 0:02:53]} 7. Nc3 {[%clk 0:03:01]}  Nf6 {[%clk 0:02:54]} 8. Bg5 {[%clk 0:03:01]}  e6 {[%clk 0:02:54]} 9. O-O-O {[%clk 0:03:02]}  Be7 {[%clk 0:02:52]} 10. Qd3 {[%clk 0:03:03]}  h6 {[%clk 0:02:39]} 11. Bh4 {[%clk 0:03:02]}  Qc7 {[%clk 0:02:35]} 12. Nd4 {[%clk 0:03:01]}  Rd8 {[%clk 0:02:33]} 13. f4 {[%clk 0:02:47]}  a6 {[%clk 0:01:53]} 14. f5 {[%clk 0:02:47]}  e5 {[%clk 0:01:49]} 15. Bxf6 {[%clk 0:02:46]}  Bxf6 {[%clk 0:01:45]} 16. Nf3 {[%clk 0:02:47]}  h5 {[%clk 0:01:22]} 17. Kb1 {[%clk 0:02:41]}  b5 {[%clk 0:01:13]} 18. h3 {[%clk 0:02:17]}  h4 {[%clk 0:01:02]} 19. Nh2 {[%clk 0:02:17]}  b4 {[%clk 0:00:58]} 20. Nd5 {[%clk 0:02:17]}  Bxd5 {[%clk 0:00:53]} 21. exd5 {[%clk 0:02:17]}  a5 {[%clk 0:00:42]} 22. Ng4 {[%clk 0:02:15]}  Rb8 {[%clk 0:00:36]} 23. Rhe1 {[%clk 0:02:10]}  a4 {[%clk 0:00:33]} 24. Re4 {[%clk 0:02:11]}  b3 {[%clk 0:00:30]} 25. cxb3 {[%clk 0:02:02]}  axb3 {[%clk 0:00:29]} 26. a3 {[%clk 0:02:03]}  Ke7 {[%clk 0:00:24]} 27. Rc4 {[%clk 0:02:01]}  Qb7 {[%clk 0:00:18]} 28. Rdc1 {[%clk 0:01:49]}  Rhc8 {[%clk 0:00:18]} 29. Rc6 {[%clk 0:01:50]}  Rxc6 {[%clk 0:00:15]} 30. dxc6 {[%clk 0:01:50]}  Qc8 {[%clk 0:00:16]} 31. Ne3 {[%clk 0:01:49]}  Kf8 {[%clk 0:00:14]} 32. Nd5 {[%clk 0:01:50]}  Bg5 {[%clk 0:00:13]} 33. Rc3 {[%clk 0:01:50]}  Bd8 {[%clk 0:00:07]} 34. c7 {[%clk 0:01:46]}  Rb7 {[%clk 0:00:06]} 35. cxd8=Q+ {[%clk 0:01:45]}  Qxd8 {[%clk 0:00:07]} 36. Rxb3 {[%clk 0:01:44]}  Rxb3 {[%clk 0:00:08]} 37. Qxb3 {[%clk 0:01:44]}  g6 {[%clk 0:00:06]} 38. fxg6 {[%clk 0:01:44]}  Qg5 {[%clk 0:00:07]} 39. gxf7 {[%clk 0:01:29]}  Qf5+ {[%clk 0:00:06]} 40. Ka2 {[%clk 0:01:29]}  Qxf7 {[%clk 0:00:06]} 41. Qb8+ {[%clk 0:01:26]}  Kg7 {[%clk 0:00:07]} 42. Qxd6 {[%clk 0:01:27]}  e4 {[%clk 0:00:06]} 43. Qe5+ {[%clk 0:01:25]}  Kg8 {[%clk 0:00:05]} 44. Qxe4 {[%clk 0:01:26]}  Kh8 {[%clk 0:00:05]} 45. Qxh4+ {[%clk 0:01:25]}  Kg7 {[%clk 0:00:05]} 46. Qd4+ {[%clk 0:01:25]}  Kh7 {[%clk 0:00:05]} 47. Qe4+ {[%clk 0:01:23]}  Kh8 {[%clk 0:00:06]} 48. Qe5+ {[%clk 0:01:23]}  Kh7 {[%clk 0:00:06]} 49. Qh5+ {[%clk 0:01:21]}  Qxh5 {[%clk 0:00:05]} 50. Nf6+ {[%clk 0:01:21]}  Kg6 {[%clk 0:00:06]} 51. Nxh5 {[%clk 0:01:22]}  Kxh5 {[%clk 0:00:07]} 52. a4 {[%clk 0:01:22]} 1-0


[Site "https://www.chess.com"]

[Event "Titled Tuesday Blitz April 12 Early 2022"]
[White "Derjabin, Ilja"]
[Black "Tuleyeva-Aketayeva, Dana"]
[WhiteFideId "14104768"]
[BlackFideId "13701932"]
[WhiteElo "2341"]
[BlackElo "1875"]
[Result "1-0"]
[Round "01"]
[TimeControl "180+1"]
[Date "2022.04.13"]
[WhiteClock "0:01:57"]
[BlackClock "0:00:02"]

1. d4 {[%clk 0:02:50]}  Nf6 {[%clk 0:02:56]} 2. c4 {[%clk 0:02:50]}  e6 {[%clk 0:02:56]} 3. Nc3 {[%clk 0:02:49]}  c5 {[%clk 0:02:56]} 4. d5 {[%clk 0:02:49]}  exd5 {[%clk 0:02:56]} 5. cxd5 {[%clk 0:02:50]}  d6 {[%clk 0:02:56]} 6. e4 {[%clk 0:02:50]}  g6 {[%clk 0:02:56]} 7. Nge2 {[%clk 0:02:51]}  Bg7 {[%clk 0:02:56]} 8. Ng3 {[%clk 0:02:52]}  O-O {[%clk 0:02:56]} 9. Be2 {[%clk 0:02:52]}  a6 {[%clk 0:02:54]} 10. a4 {[%clk 0:02:52]}  Nbd7 {[%clk 0:02:38]} 11. O-O {[%clk 0:02:51]}  Re8 {[%clk 0:02:38]} 12. f4 {[%clk 0:02:51]}  Nf8 {[%clk 0:02:28]} 13. e5 {[%clk 0:02:44]}  dxe5 {[%clk 0:02:03]} 14. f5 {[%clk 0:02:44]}  N8d7 {[%clk 0:01:45]} 15. fxg6 {[%clk 0:02:41]}  hxg6 {[%clk 0:01:46]} 16. Bg5 {[%clk 0:02:40]}  Qb6 {[%clk 0:01:43]} 17. Qd2 {[%clk 0:02:36]}  Nh7 {[%clk 0:01:21]} 18. a5 {[%clk 0:02:32]}  Qb4 {[%clk 0:01:12]} 19. Ra4 {[%clk 0:02:30]}  Qb3 {[%clk 0:00:46]} 20. Bc4 {[%clk 0:02:20]}  Qxa4 {[%clk 0:00:39]} 21. Nxa4 {[%clk 0:02:20]}  f6 {[%clk 0:00:34]} 22. d6+ {[%clk 0:02:16]}  Kh8 {[%clk 0:00:32]} 23. Be3 {[%clk 0:02:17]}  f5 {[%clk 0:00:28]} 24. Bxc5 {[%clk 0:02:11]}  f4 {[%clk 0:00:24]} 25. Ne4 {[%clk 0:02:11]}  g5 {[%clk 0:00:21]} 26. Nb6 {[%clk 0:02:09]}  Rb8 {[%clk 0:00:20]} 27. Bf2 {[%clk 0:02:04]}  g4 {[%clk 0:00:13]} 28. Nxd7 {[%clk 0:02:03]}  Bxd7 {[%clk 0:00:13]} 29. Nc5 {[%clk 0:02:04]}  Red8 {[%clk 0:00:09]} 30. Nxd7 {[%clk 0:02:00]}  Rxd7 {[%clk 0:00:09]} 31. Be6 {[%clk 0:02:00]}  Rdd8 {[%clk 0:00:09]} 32. Bb6 {[%clk 0:02:00]}  Rf8 {[%clk 0:00:07]} 33. d7 {[%clk 0:01:59]}  Nf6 {[%clk 0:00:07]} 34. d8=Q {[%clk 0:01:57]}  Rbxd8 {[%clk 0:00:07]} 35. Bxd8 {[%clk 0:01:58]}  Ne4 {[%clk 0:00:02]} 36. Qd7 {[%clk 0:01:57]} 1-0


[Site "https://www.chess.com"]

[Event "Titled Tuesday Blitz April 12 Early 2022"]
[White "Dilanyan, Grigor"]
[Black "Politov, Pavel Y."]
[WhiteFideId "13303570"]
[BlackFideId "24110515"]
[WhiteElo "2279"]
[BlackElo "2090"]
[Result "1-0"]
[Round "01"]
[TimeControl "180+1"]
[Date "2022.04.13"]
[WhiteClock "0:01:19"]
[BlackClock "0:00:06"]

1. e4 {[%clk 0:02:58]}  c5 {[%clk 0:02:59]} 2. Nf3 {[%clk 0:02:56]}  d6 {[%clk 0:03:00]} 3. d4 {[%clk 0:02:56]}  cxd4 {[%clk 0:03:01]} 4. Nxd4 {[%clk 0:02:56]}  Nf6 {[%clk 0:03:01]} 5. Nc3 {[%clk 0:02:57]}  a6 {[%clk 0:03:02]} 6. Bc4 {[%clk 0:02:55]}  e6 {[%clk 0:03:00]} 7. Bb3 {[%clk 0:02:55]}  Nbd7 {[%clk 0:03:00]} 8. f4 {[%clk 0:02:55]}  Nc5 {[%clk 0:02:59]} 9. e5 {[%clk 0:02:54]}  dxe5 {[%clk 0:02:42]} 10. fxe5 {[%clk 0:02:55]}  Nxb3 {[%clk 0:02:42]} 11. axb3 {[%clk 0:02:52]}  Nd5 {[%clk 0:02:42]} 12. O-O {[%clk 0:02:44]}  Bc5 {[%clk 0:02:34]} 13. Ne2 {[%clk 0:02:33]}  O-O {[%clk 0:02:28]} 14. c3 {[%clk 0:02:17]}  Qc7 {[%clk 0:02:21]} 15. b4 {[%clk 0:02:17]}  Ba7 {[%clk 0:01:56]} 16. b5 {[%clk 0:01:52]}  Qxe5 {[%clk 0:01:50]} 17. Kh1 {[%clk 0:01:52]}  axb5 {[%clk 0:01:40]} 18. Nxb5 {[%clk 0:01:48]}  Rb8 {[%clk 0:01:05]} 19. Rxa7 {[%clk 0:01:42]}  Bd7 {[%clk 0:00:30]} 20. Nbd4 {[%clk 0:01:41]}  Bc6 {[%clk 0:00:21]} 21. Nxc6 {[%clk 0:01:40]}  bxc6 {[%clk 0:00:22]} 22. Bf4 {[%clk 0:01:38]}  Nxf4 {[%clk 0:00:21]} 23. Nxf4 {[%clk 0:01:39]}  Rxb2 {[%clk 0:00:19]} 24. Qf3 {[%clk 0:01:37]}  Qf6 {[%clk 0:00:13]} 25. h3 {[%clk 0:01:30]}  Rd8 {[%clk 0:00:12]} 26. Qxc6 {[%clk 0:01:23]}  h6 {[%clk 0:00:11]} 27. Qc7 {[%clk 0:01:23]}  Rdd2 {[%clk 0:00:10]} 28. Ra8+ {[%clk 0:01:19]}  Kh7 {[%clk 0:00:10]} 29. Qc8 {[%clk 0:01:20]}  g5 {[%clk 0:00:06]} 30. Qg8# {[%clk 0:01:19]} 1-0


[Site "https://www.chess.com"]

[Event "Titled Tuesday Blitz April 12 Early 2022"]
[White "Garagulya, Konstantin"]
[Black "Murzin, Volodar"]
[WhiteFideId "4128931"]
[BlackFideId "44155573"]
[WhiteElo "2329"]
[BlackElo "2585"]
[Result "1-0"]
[Round "01"]
[TimeControl "180+1"]
[Date "2022.04.12"]
[WhiteClock "0:00:03"]
[BlackClock "0:00:01"]

1. d4 {[%clk 0:02:52]}  Nf6 {[%clk 0:02:58]} 2. Nf3 {[%clk 0:02:51]}  g6 {[%clk 0:02:59]} 3. Nc3 {[%clk 0:02:51]}  Bg7 {[%clk 0:02:59]} 4. e4 {[%clk 0:02:51]}  d6 {[%clk 0:03:00]} 5. Bc4 {[%clk 0:02:51]}  O-O {[%clk 0:03:00]} 6. e5 {[%clk 0:02:52]}  Ne8 {[%clk 0:02:59]} 7. Bf4 {[%clk 0:02:50]}  c6 {[%clk 0:02:58]} 8. Qd2 {[%clk 0:02:49]}  Nc7 {[%clk 0:02:54]} 9. O-O-O {[%clk 0:02:44]}  b5 {[%clk 0:02:54]} 10. Bd3 {[%clk 0:02:40]}  Be6 {[%clk 0:02:45]} 11. Kb1 {[%clk 0:02:30]}  Nba6 {[%clk 0:01:12]} 12. h4 {[%clk 0:02:19]}  Nb4 {[%clk 0:01:07]} 13. Be2 {[%clk 0:02:00]}  Ncd5 {[%clk 0:00:59]} 14. Nxd5 {[%clk 0:01:59]}  Nxd5 {[%clk 0:01:00]} 15. Bh6 {[%clk 0:01:43]}  b4 {[%clk 0:00:59]} 16. Bxg7 {[%clk 0:01:11]}  Kxg7 {[%clk 0:00:52]} 17. Ng5 {[%clk 0:01:12]}  Qa5 {[%clk 0:00:18]} 18. Nxe6+ {[%clk 0:01:11]}  fxe6 {[%clk 0:00:19]} 19. Bc4 {[%clk 0:01:12]}  dxe5 {[%clk 0:00:11]} 20. dxe5 {[%clk 0:00:59]}  Rad8 {[%clk 0:00:11]} 21. Qg5 {[%clk 0:00:39]}  Qc5 {[%clk 0:00:09]} 22. Bxd5 {[%clk 0:00:37]}  Rxd5 {[%clk 0:00:08]} 23. Rxd5 {[%clk 0:00:37]}  exd5 {[%clk 0:00:06]} 24. f3 {[%clk 0:00:35]}  Rf5 {[%clk 0:00:06]} 25. Qg3 {[%clk 0:00:27]}  Qd4 {[%clk 0:00:06]} 26. h5 {[%clk 0:00:26]}  Qxe5 {[%clk 0:00:06]} 27. h6+ {[%clk 0:00:25]}  Kf7 {[%clk 0:00:06]} 28. Qf2 {[%clk 0:00:25]}  d4 {[%clk 0:00:03]} 29. Re1 {[%clk 0:00:18]}  Qd5 {[%clk 0:00:03]} 30. Qe2 {[%clk 0:00:17]}  e5 {[%clk 0:00:02]} 31. Qa6 {[%clk 0:00:17]}  Qd7 {[%clk 0:00:03]} 32. Qc4+ {[%clk 0:00:16]}  Kf6 {[%clk 0:00:02]} 33. Qxb4 {[%clk 0:00:16]}  Kg5 {[%clk 0:00:03]} 34. Rh1 {[%clk 0:00:14]}  Rf4 {[%clk 0:00:03]} 35. Qc5 {[%clk 0:00:13]}  Rf5 {[%clk 0:00:02]} 36. g4 {[%clk 0:00:07]}  Rxf3 {[%clk 0:00:02]} 37. Qxe5+ {[%clk 0:00:07]}  Kxg4 {[%clk 0:00:03]} 38. Rg1+ {[%clk 0:00:05]}  Kh3 {[%clk 0:00:03]} 39. Qe2 {[%clk 0:00:03]}  Rg3 {[%clk 0:00:01]} 40. Qf1+ {[%clk 0:00:03]}  Kh4 {[%clk 0:00:01]} 41. Qf2 {[%clk 0:00:03]}  Qg4 {[%clk 0:00:01]} 42. Qh2+ {[%clk 0:00:03]}  Kg5 {[%clk 0:00:01]} 43. Rxg3 {[%clk 0:00:03]} 1-0


[Site "https://www.chess.com"]

[Event "Titled Tuesday Blitz April 12 Early 2022"]
[White "Garv Gaur"]
[Black "Zhao, Jun"]
[WhiteFideId "45030839"]
[BlackFideId "8602522"]
[WhiteElo "1950"]
[BlackElo "2547"]
[Result "0-1"]
[Round "01"]
[TimeControl "180+1"]
[Date "2022.04.12"]
[WhiteClock "0:00:05"]
[BlackClock "0:01:06"]

1. d4 {[%clk 0:03:00]}  Nf6 {[%clk 0:02:59]} 2. Nf3 {[%clk 0:03:00]}  e6 {[%clk 0:02:59]} 3. c4 {[%clk 0:03:00]}  d5 {[%clk 0:02:59]} 4. g3 {[%clk 0:03:00]}  Bb4+ {[%clk 0:02:59]} 5. Bd2 {[%clk 0:03:00]}  Be7 {[%clk 0:02:59]} 6. Bg2 {[%clk 0:03:00]}  O-O {[%clk 0:02:59]} 7. O-O {[%clk 0:03:00]}  Nbd7 {[%clk 0:03:00]} 8. Qc2 {[%clk 0:03:01]}  c6 {[%clk 0:03:00]} 9. Rd1 {[%clk 0:03:01]}  a5 {[%clk 0:02:56]} 10. Bf4 {[%clk 0:02:55]}  Nh5 {[%clk 0:02:54]} 11. Bc1 {[%clk 0:02:54]}  a4 {[%clk 0:02:53]} 12. Nc3 {[%clk 0:02:50]}  dxc4 {[%clk 0:02:51]} 13. Nxa4 {[%clk 0:02:47]}  Nhf6 {[%clk 0:02:44]} 14. Nc5 {[%clk 0:02:43]}  b5 {[%clk 0:02:39]} 15. Ng5 {[%clk 0:02:38]}  Qb6 {[%clk 0:02:28]} 16. Be3 {[%clk 0:02:22]}  Nxc5 {[%clk 0:02:18]} 17. dxc5 {[%clk 0:02:15]}  Bxc5 {[%clk 0:02:19]} 18. Bxc5 {[%clk 0:02:09]}  Qxc5 {[%clk 0:02:18]} 19. Nf3 {[%clk 0:02:06]}  e5 {[%clk 0:02:11]} 20. b4 {[%clk 0:02:01]}  Qe7 {[%clk 0:02:05]} 21. Qc3 {[%clk 0:01:59]}  Re8 {[%clk 0:02:02]} 22. Ng5 {[%clk 0:01:53]}  Bd7 {[%clk 0:01:54]} 23. a3 {[%clk 0:01:27]}  h6 {[%clk 0:01:53]} 24. Ne4 {[%clk 0:01:27]}  Nxe4 {[%clk 0:01:51]} 25. Bxe4 {[%clk 0:01:28]}  f5 {[%clk 0:01:51]} 26. Bg2 {[%clk 0:01:25]}  e4 {[%clk 0:01:51]} 27. e3 {[%clk 0:01:25]}  Be6 {[%clk 0:01:49]} 28. Rd4 {[%clk 0:01:25]}  Ra6 {[%clk 0:01:41]} 29. g4 {[%clk 0:01:23]}  Rea8 {[%clk 0:01:31]} 30. h3 {[%clk 0:01:11]}  Qf6 {[%clk 0:01:22]} 31. gxf5 {[%clk 0:00:57]}  Bxf5 {[%clk 0:01:23]} 32. Qb2 {[%clk 0:00:36]}  R6a7 {[%clk 0:01:21]} 33. Qc3 {[%clk 0:00:25]}  Kh7 {[%clk 0:01:19]} 34. Qb2 {[%clk 0:00:24]}  Bg6 {[%clk 0:01:19]} 35. Qc3 {[%clk 0:00:19]}  Rd7 {[%clk 0:01:13]} 36. Rad1 {[%clk 0:00:17]}  Rad8 {[%clk 0:01:11]} 37. Rxd7 {[%clk 0:00:11]}  Rxd7 {[%clk 0:01:09]} 38. Rc1 {[%clk 0:00:06]}  Rd1+ {[%clk 0:01:06]} 39. Kh2 {[%clk 0:00:05]}  Qd6+ {[%clk 0:01:06]} 0-1


[Site "https://www.chess.com"]

[Event "Titled Tuesday Blitz April 12 Early 2022"]
[White "Gharibyan, Mamikon"]
[Black "Mortazavi, Ali"]
[WhiteFideId "13308300"]
[BlackFideId "401323"]
[WhiteElo "2254"]
[BlackElo "2339"]
[Result "1-0"]
[Round "01"]
[TimeControl "180+1"]
[Date "2022.04.12"]
[WhiteClock "0:01:31"]
[BlackClock "0:01:05"]

1. c4 {[%clk 0:02:58]}  Nf6 {[%clk 0:02:59]} 2. Nc3 {[%clk 0:02:58]}  g6 {[%clk 0:03:00]} 3. d4 {[%clk 0:02:56]}  d6 {[%clk 0:03:00]} 4. e4 {[%clk 0:02:56]}  Bg7 {[%clk 0:03:01]} 5. Nf3 {[%clk 0:02:56]}  O-O {[%clk 0:03:02]} 6. Be2 {[%clk 0:02:55]}  Bg4 {[%clk 0:03:03]} 7. O-O {[%clk 0:02:52]}  Nbd7 {[%clk 0:03:03]} 8. Be3 {[%clk 0:02:42]}  e5 {[%clk 0:03:03]} 9. d5 {[%clk 0:02:40]}  a5 {[%clk 0:03:03]} 10. h3 {[%clk 0:02:38]}  Bxf3 {[%clk 0:03:03]} 11. Bxf3 {[%clk 0:02:38]}  Ne8 {[%clk 0:03:03]} 12. Be2 {[%clk 0:02:30]}  f5 {[%clk 0:03:03]} 13. exf5 {[%clk 0:02:31]}  gxf5 {[%clk 0:03:02]} 14. f4 {[%clk 0:02:32]}  Kh8 {[%clk 0:02:59]} 15. Qc2 {[%clk 0:02:30]}  e4 {[%clk 0:02:53]} 16. g4 {[%clk 0:02:26]}  fxg4 {[%clk 0:02:18]} 17. Bxg4 {[%clk 0:01:58]}  Nc5 {[%clk 0:02:09]} 18. Bxc5 {[%clk 0:01:54]}  dxc5 {[%clk 0:02:09]} 19. Nxe4 {[%clk 0:01:54]}  h6 {[%clk 0:01:47]} 20. Kh2 {[%clk 0:01:47]}  b6 {[%clk 0:01:36]} 21. Be6 {[%clk 0:01:42]}  Nf6 {[%clk 0:01:32]} 22. Ng3 {[%clk 0:01:39]}  Ne8 {[%clk 0:01:18]} 23. Nh5 {[%clk 0:01:35]}  Bd4 {[%clk 0:01:10]} 24. Qg6 {[%clk 0:01:32]}  Rf6 {[%clk 0:01:05]} 25. Qg8# {[%clk 0:01:31]} 1-0


[Site "https://www.chess.com"]

[Event "Titled Tuesday Blitz April 12 Early 2022"]
[White "Grischuk, Alexander"]
[Black "Martic, Ivan"]
[WhiteFideId "4126025"]
[BlackFideId "929301"]
[WhiteElo "2762"]
[BlackElo "2317"]
[Result "1-0"]
[Round "01"]
[TimeControl "180+1"]
[Date "2022.04.12"]
[WhiteClock "0:00:15"]
[BlackClock "0:00:02"]

1. d4 {[%clk 0:03:00]}  Nf6 {[%clk 0:02:59]} 2. c4 {[%clk 0:03:01]}  g6 {[%clk 0:02:59]} 3. Bg5 {[%clk 0:02:58]}  Bg7 {[%clk 0:02:58]} 4. Nc3 {[%clk 0:02:58]}  O-O {[%clk 0:02:53]} 5. Nf3 {[%clk 0:02:56]}  c5 {[%clk 0:02:45]} 6. d5 {[%clk 0:02:56]}  d6 {[%clk 0:02:45]} 7. e3 {[%clk 0:02:51]}  h6 {[%clk 0:02:43]} 8. Bh4 {[%clk 0:02:50]}  Bf5 {[%clk 0:02:37]} 9. Nd2 {[%clk 0:02:50]}  Qb6 {[%clk 0:02:25]} 10. Qc1 {[%clk 0:02:49]}  a6 {[%clk 0:02:21]} 11. Be2 {[%clk 0:02:47]}  Qa5 {[%clk 0:02:15]} 12. a4 {[%clk 0:02:47]}  Re8 {[%clk 0:02:08]} 13. O-O {[%clk 0:02:46]}  g5 {[%clk 0:02:03]} 14. Bg3 {[%clk 0:02:46]}  Nbd7 {[%clk 0:01:54]} 15. Bd1 {[%clk 0:02:16]}  Bd3 {[%clk 0:01:44]} 16. Re1 {[%clk 0:02:15]}  Ne5 {[%clk 0:01:42]} 17. Bxe5 {[%clk 0:02:14]}  dxe5 {[%clk 0:01:43]} 18. Bc2 {[%clk 0:02:14]}  e4 {[%clk 0:01:28]} 19. Bxd3 {[%clk 0:02:10]}  exd3 {[%clk 0:01:29]} 20. Qb1 {[%clk 0:02:11]}  e6 {[%clk 0:01:22]} 21. Qxd3 {[%clk 0:02:10]}  Rad8 {[%clk 0:01:13]} 22. Red1 {[%clk 0:01:58]}  exd5 {[%clk 0:00:48]} 23. cxd5 {[%clk 0:01:57]}  Qb4 {[%clk 0:00:48]} 24. a5 {[%clk 0:01:38]}  Nd7 {[%clk 0:00:42]} 25. Qc2 {[%clk 0:01:32]}  Qh4 {[%clk 0:00:30]} 26. Nf3 {[%clk 0:01:10]}  Qh5 {[%clk 0:00:29]} 27. Qf5 {[%clk 0:01:10]}  Ne5 {[%clk 0:00:27]} 28. h3 {[%clk 0:01:00]}  Nxf3+ {[%clk 0:00:26]} 29. Qxf3 {[%clk 0:01:01]}  Qg6 {[%clk 0:00:26]} 30. Rac1 {[%clk 0:00:59]}  h5 {[%clk 0:00:25]} 31. g4 {[%clk 0:00:56]}  hxg4 {[%clk 0:00:24]} 32. hxg4 {[%clk 0:00:56]}  Be5 {[%clk 0:00:23]} 33. Kg2 {[%clk 0:00:55]}  Kg7 {[%clk 0:00:23]} 34. Qf5 {[%clk 0:00:50]}  Qxf5 {[%clk 0:00:18]} 35. gxf5 {[%clk 0:00:51]}  Rd6 {[%clk 0:00:16]} 36. Ne4 {[%clk 0:00:46]}  Rh6 {[%clk 0:00:16]} 37. Nxg5 {[%clk 0:00:32]}  Bxb2 {[%clk 0:00:14]} 38. Rxc5 {[%clk 0:00:27]}  Bf6 {[%clk 0:00:12]} 39. Nf3 {[%clk 0:00:27]}  Re4 {[%clk 0:00:12]} 40. d6 {[%clk 0:00:24]}  Rg4+ {[%clk 0:00:10]} 41. Kf1 {[%clk 0:00:25]}  Ra4 {[%clk 0:00:08]} 42. Ke2 {[%clk 0:00:23]}  Rh5 {[%clk 0:00:04]} 43. d7 {[%clk 0:00:21]}  Bd8 {[%clk 0:00:04]} 44. Rc8 {[%clk 0:00:20]}  Rh8 {[%clk 0:00:04]} 45. Rd5 {[%clk 0:00:19]}  Kf6 {[%clk 0:00:04]} 46. Nd4 {[%clk 0:00:18]}  Ra2+ {[%clk 0:00:04]} 47. Kf3 {[%clk 0:00:18]}  Rh3+ {[%clk 0:00:03]} 48. Kg2 {[%clk 0:00:17]}  Rh8 {[%clk 0:00:03]} 49. Rb8 {[%clk 0:00:15]}  Rg8+ {[%clk 0:00:03]} 50. Kf3 {[%clk 0:00:15]}  Ke7 {[%clk 0:00:03]} 51. Rxb7 {[%clk 0:00:15]}  Rxa5 {[%clk 0:00:02]} 52. Nc6+ {[%clk 0:00:14]}  Kf6 {[%clk 0:00:02]} 53. Nxa5 {[%clk 0:00:15]} 1-0


[Site "https://www.chess.com"]